Cogmind - Beta 10.2 @@@ ROGUE MODE // 2021.01.26 @ 11:13:07 Player: Demise Result: Destroyed by G-47 Trooper with Particle Gun Performance ------------- Evolutions (1) 500 Regions Visited (6) 1200 Robots Destroyed (128) 640 Value Destroyed (2909) 2909 Prototype IDs (42) 840 Alien Tech Used (0) 0 Bonus (-1003) -1003 TOTAL SCORE: 5086 Bonus ------- High Alert Combat Kills 68 Aligned with FarCom 300 Friendly Fire -1371 Cogmind --------- Core Integrity 0/400 Matter 199/300 Energy 308/310 System Corruption 3% Temperature Cool (306) Movement Walking (210) Ox3 Location -8/Mines Parts ------- > --- POWER (1) -------- Reinforced Fission Core > --- PROPULSION (2) --- Advanced Myomer Leg Advanced Myomer Leg > --- UTILITY (4) ------ Humpback Humpback > --- WEAPON (2) ------- Improved Assault Rifle Improved Assault Rifle > --- INVENTORY (44) --- Makeshift Power Source Makeshift Leg Makeshift Leg Combat Antigrav System Improved Flight Unit Improved Flight Unit Improved Flight Unit Improved Flight Unit Experimental Heat Sink High-capacity Storage Unit High-capacity Storage Unit Humpback Humpback Lightpack 2.0 High-capacity Matter Pod (200) Gravity Neutralizing Apparatus Gravity Neutralizing Apparatus Experimental Targeting Computer Advanced Launcher Guidance Computer Improved Target Analyzer Advanced Core Analyzer Improved Armor Integrity Analyzer Advanced Weapon Cycler Advanced Transmission Jammer Makeshift Cloaking Device Hardened Light Armor Plating Hardened Light Armor Plating Hacking Suite Hacking Suite Hacking Suite EX Chip 2 Improved Trap Extractor Advanced Recalibrator AS-neutralizer No. 17b Heavy EM Pulse Gun Improved Assault Rifle 8R-AWN's Boregun 8R-AWN's Boregun Mini Grenade Launcher Deploy-a-Sentry Peak State ------------ > --- POWER ------------ Reinforced Fission Core > --- PROPULSION ------- Advanced Myomer Leg Advanced Myomer Leg > --- UTILITY ---------- Humpback Humpback > --- WEAPON ----------- Improved Assault Rifle Improved Assault Rifle > --- INVENTORY -------- Makeshift Power Source Makeshift Power Source Light Neutrino Core Light Treads Combat Airjet Combat Antigrav System Improved Flight Unit Improved Flight Unit Improved Flight Unit Experimental Heat Sink High-capacity Storage Unit High-capacity Storage Unit High-capacity Storage Unit Humpback Humpback Lightpack 2.0 High-capacity Matter Pod Gravity Neutralizing Apparatus Gravity Neutralizing Apparatus Experimental Targeting Computer Advanced Launcher Guidance Computer Advanced Core Analyzer Advanced Weapon Cycler Advanced Transmission Jammer 8R-AWN's Armor/EX Hacking Suite Hacking Suite Hacking Suite Improved Trap Extractor AS-neutralizer No. 17b Heavy EM Pulse Gun Improved Assault Rifle Improved Assault Rifle Improved Assault Rifle 8R-AWN's Boregun 8R-AWN's Boregun Mini Grenade Launcher Datajack Deploy-a-Sentry [Rating: 52] Favorites ----------- Power Ion Engine Engine Ion Engine Power Core Reinforced Fission Core Propulsion Light Treads Treads Light Treads Leg Advanced Myomer Leg Hover Unit Combat Airjet Utility High-capacity Storage Unit Device Structural Scanner Storage High-capacity Storage Unit Processor Signal Interpreter Protection Medium Armor Plating Weapon Improved Assault Rifle Energy Gun Heavy EM Pulse Gun Energy Cannon Beam Cannon Ballistic Gun Improved Assault Rifle Launcher Mini Grenade Launcher Special Weapon Mining Laser Special Melee Weapon Datajack Build | -11 -10 -10 -9 -9 -9 -8 ------- Run | Scr Mat Min Mat Min Exi Min Slots Evolved 2 | . . . 2 . . . Power . | . . . . . . . Propulsion . | . . . . . . . Utility 2 | . . . 2 . . . Weapon . | . . . . . . . Parts Attached 116 | 4 25 . 54 8 24 1 Power 10 | . 1 . 5 . 4 . Engine 7 | . 1 . 5 . 1 . Core 3 | . . . . . 3 . Reactor . | . . . . . . . Propulsion 26 | 2 2 . 15 2 5 . Treads 23 | 2 2 . 15 1 3 . Leg 2 | . . . . . 2 . Wheel . | . . . . . . . Hover 1 | . . . . 1 . . Flight . | . . . . . . . Utility 30 | . 7 . 16 . 7 . Device 8 | . 4 . 4 . . . Storage 10 | . 2 . 5 . 3 . Processor 3 | . 1 . . . 2 . Hackware . | . . . . . . . Protection 9 | . . . 7 . 2 . Artifact . | . . . . . . . Weapon 50 | 2 15 . 18 6 8 1 Energy Gun 3 | . 1 . . . 2 . Energy Cannon 3 | . 3 . . . . . Ballistic Gun 31 | 2 7 . 14 3 4 1 Ballistic Cannon . | . . . . . . . Launcher 5 | . . . 1 3 1 . Special Weapon 2 | . 2 . . . . . Impact Weapon . | . . . . . . . Slashing Weapon . | . . . . . . . Piercing Weapon . | . . . . . . . Special Melee Weapon 6 | . 2 . 3 . 1 . Unidentified Prototypes 2 | . 1 . 1 . . . Parts Lost 9 | . 6 . 1 1 . 1 Power . | . . . . . . . Propulsion 3 | . 2 . . 1 . . Utility 2 | . 1 . 1 . . . Weapon 4 | . 3 . . . . 1 Highest Loss Streak 3 | . 3 . 1 1 . 1 Average Slot Usage (%) 92 | . 83 100 99 99 85 77 Engine 9 | . 9 14 11 11 6 . Core 1 | . . . . . 4 11 Treads 20 | . 25 28 22 17 15 . Leg 1 | . . . . . 6 22 Device 3 | . 13 . 3 . . . Storage 23 | . 5 14 32 44 20 22 Processor 4 | . 3 14 2 . 7 . Protection 2 | . . . 5 . 2 . Energy Gun 1 | . 1 . . . 2 . Ballistic Gun 19 | . 15 28 21 19 15 22 Special Melee Weapon 1 | . 2 . . . 2 . Naked Turns . | . . . . . . . Heaviest Build 187 | 3 44 41 110 110 187 187 Greatest Support 60 | 40 40 40 40 40 60 60 Greatest Overweight (x) 31 | . 2 1 2 5 31 3 Average Overweight (x) 1 | . . 1 1 3 2 3 Largest Inventory Capacity 44 | 4 12 12 32 32 44 44 Average Capacity 22 | 4 6 12 25 32 31 44 Most Carried 44 | 4 12 12 32 32 44 44 Average Carried 20 | 2 5 11 24 32 26 43 Final Capacity 44 | 4 12 12 32 32 44 44 Final Carried 44 | 3 12 12 32 32 44 43 Class Distribution -------------------- 49% | Hauler-Mutant 30% | Mutant 15% | Trapper-Mutant 4% | Scavenger-Mutant Dominant Class ---------------- Mutant | -10/Materials Mutant | -10/Mines Hauler-Mutant | -9/Materials Trapper-Mutant | -9/Mines Hauler-Mutant | -9/Exiles Hauler-Mutant | -8/Mines Resources | -11 -10 -10 -9 -9 -9 -8 ----------- Run | Scr Mat Min Mat Min Exi Min Matter Collected 4111 | 284 486 172 1548 411 1100 110 Remotely . | . . . . . . . Salvage Created 5181 | 154 861 529 2473 408 555 201 Parts 333 | 7 68 18 123 26 87 4 Haulers Intercepted 8 | . 2 . 6 . . . Recyclers Shooed 6 | . . 2 4 . . . Parts Field Recycled . | . . . . . . . Retrieved Matter . | . . . . . . . Parts Self-Destructed . | . . . . . . . Prevented . | . . . . . . . Kills | -11 -10 -10 -9 -9 -9 -8 ------- Run | Scr Mat Min Mat Min Exi Min Combat Hostiles Destroyed 97 | . 16 5 39 29 4 4 Guns 59 | . 8 5 35 5 2 4 Cannons 8 | . 8 . . . . . AOE 30 | . . . 4 24 2 . Classes Destroyed 16 | 3 6 . 4 1 2 . Worker 4 | 2 1 . 1 . . . Builder 2 | . 2 . . . . . Tunneler 3 | 1 . 1 . 1 . . Hauler 8 | . 2 . 6 . . . Recycler 11 | 1 . 3 6 1 . . Operator 4 | . 3 . 1 . . . Turret 1 | . . . . . 1 . Watcher 8 | . 3 . 5 . . . Swarmer 17 | . 3 3 8 3 . . Grunt 43 | . 13 2 18 7 . 3 Brawler 2 | . . . 1 . . 1 Duelist 2 | . . . 1 1 . . Protector 1 | . . . 1 . . . Sentry 10 | . . . 10 . . . Zionite 8 | . . . . . 8 . Assembled 21 | . . . . 18 3 . Best Kill Streak 9 | 2 4 3 7 9 4 2 Combat Bots Only 9 | . 4 3 7 9 2 2 Max Kills in Single Turn 4 | 1 1 2 3 4 2 1 Gunslinging 1 | . . . 1 . . . Exploded 4 | . . . 3 4 1 . Melee . | . . . . . . . Uniques/NPCs Destroyed 5 | . . 1 . . 4 . YI-UF0 (-10/Mines) EX-BIN (-9/Exiles) EX-HEX (-9/Exiles) EX-DEC (-9/Exiles) 8R-AWN (-9/Exiles) Combat | -11 -10 -10 -9 -9 -9 -8 -------- Run | Scr Mat Min Mat Min Exi Min Damage Taken 4190 | . 936 148 1287 567 331 921 Core 648 | . 222 15 232 52 29 98 Absorbed by Shields . | . . . . . . . Core Remaining (%) 52 | 100 . 5 . . . . Volleys Fired 592 | 11 127 43 137 37 204 33 Largest 2 | 2 2 2 2 2 2 2 Hottest 100 | 40 100 43 46 53 46 46 Shots Fired 937 | 22 211 86 272 49 231 66 Gun 828 | 22 144 86 270 22 218 66 Cannon 42 | . 42 . . . . . Launcher 42 | . . . 2 27 13 . Special 25 | . 25 . . . . . Kinetic 691 | 22 122 86 270 22 103 66 Thermal 89 | . 89 . . . . . Explosive 42 | . . . 2 27 13 . Electromagnetic 115 | . . . . . 115 . Robot Hit Streak 19 | 5 17 9 19 10 14 10 Robot Miss Streak 7 | 2 7 3 3 4 3 3 Penetration Max . | . . . . . . . Secondary Targets 5 | . 1 1 3 . . . Max Gunslinging Chain 1 | . 1 1 1 . . . Shots Hit Robots 629 | 14 113 62 194 22 172 52 Core Hits 274 | 6 45 18 81 52 56 16 Critical Hits 7 | . . . 5 . 1 1 Critical Kills 3 | . . . 3 . . . Critical Parts Destroyed 3 | . . . 2 . . 1 Melee Attacks 10 | . 4 . 2 . 4 . Impact . | . . . . . . . Slashing . | . . . . . . . Piercing . | . . . . . . . Sneak Attacks 10 | . 4 . 2 . 4 . Combat Hostiles . | . . . . . . . Follow-up Attacks . | . . . . . . . Damage Inflicted 10307 | 183 1460 643 3153 1738 2296 834 Guns 7353 | 183 981 643 2866 290 1556 834 Cannons 428 | . 428 . . . . . Explosions 2453 | . . . 265 1448 740 . Melee . | . . . . . . . Ramming 25 | . 3 . 22 . . . Kinetic 6824 | 183 794 643 2866 290 1214 834 Thermal 976 | . 663 . . . 313 . Explosive 2140 | . . . 265 1448 427 . Electromagnetic 342 | . . . . . 342 . Impact . | . . . . . . . Slashing . | . . . . . . . Piercing . | . . . . . . . Highest Corruption 3 | . . . 1 1 3 3 Average Corruption 1 | . . . 1 1 1 3 Corruption Purged . | . . . . . . . Effects 79 | . . . 23 6 47 3 Message Errors 30 | . . . 7 4 19 . Matter Fused 7 | . . . . . 6 1 Heat Flow Errors 4 | . . . . . 4 . Energy Discharges 11 | . . . 3 1 6 1 Data Loss (minor) 14 | . . . 8 1 5 . Targeting Errors 12 | . . . 5 . 6 1 Weapon Failures 1 | . . . . . 1 . Overload Shots . | . . . . . . . Overflow Damage 33 | . 22 . 11 . . . Projectiles 22 | . 22 . . . . . Explosions 11 | . . . 11 . . . Melee . | . . . . . . . Knockbacks 1 | . . . 1 . . . Impact 1 | . . . 1 . . . Kinetic . | . . . . . . . Secondary . | . . . . . . . Self-Inflicted Damage 162 | . 97 . . 65 . . Shots 5 | . 1 . . 4 . . Rammed 3 | . 1 . 2 . . . Targets Rammed 3 | . 1 . 2 . . . Kicked . | . . . . . . . Crushed . | . . . . . . . Highest Temperature 298 | . 254 22 22 12 245 298 Average Temperature 46 | . 50 2 4 4 58 86 Received Heat Transfer 1467 | . 393 63 450 111 . 450 Siege Activations . | . . . . . . . Robots Corrupted . | . . . . . . . Combat Hostiles . | . . . . . . . Parts Fried 1 | . . . . . 1 . Impact Corruptions . | . . . . . . . Robots Melted . | . . . . . . . Combat Hostiles . | . . . . . . . Parts Melted . | . . . . . . . Heat Transferred 1693 | . 1543 . . . 150 . Parts Sabotaged . | . . . . . . . Parts Stolen . | . . . . . . . Parts Stripped . | . . . . . . . Power Chain Reactions 3 | . . . . . 3 . Missiles Intercepted . | . . . . . . . Alert | -11 -10 -10 -9 -9 -9 -8 ------- Run | Scr Mat Min Mat Min Exi Min Peak Influence 535 | 20 255 111 535 474 . 100 Initial 204 | . 13 46 . 204 . . Average 215 | 5 123 36 325 225 . 46 Maximum Alert Level 2 | . 1 . 2 2 . . Low Security (%) 56 | 100 96 100 22 40 . 100 Level 1 24 | . 3 . 34 58 . . Level 2 19 | . . . 43 1 . . Level 3 . | . . . . . . . Level 4 . | . . . . . . . Level 5 . | . . . . . . . High Security . | . . . . . . . Max Security . | . . . . . . . Squads Dispatched 12 | . 4 . 8 . . . Investigation 4 | . 1 . 3 . . . Extermination . | . . . . . . . Reinforcement 5 | . 3 . 2 . . . Assault 3 | . . . 3 . . . Garrison . | . . . . . . . Intercept . | . . . . . . . Construction Impeded . | . . . . . . . Haulers Reinforced . | . . . . . . . Stealth | -11 -10 -10 -9 -9 -9 -8 --------- Run | Scr Mat Min Mat Min Exi Min Distress Signals 8 | . 1 . 7 . . . Communications Jammed . | . . . . . . . Distress Signals . | . . . . . . . Times Spotted 163 | . 37 5 64 24 27 6 Peak Tracking Total 10 | . 4 3 10 6 9 3 Tactical Retreats 10 | . 2 . . . 8 . Traps | -11 -10 -10 -9 -9 -9 -8 ------- Run | Scr Mat Min Mat Min Exi Min Traps Triggered 3 | . . . 2 1 . . Indirectly . | . . . . . . . Trap Hack Attempts 233 | . 150 . 83 . . . Triggered 2 | . 2 . . . . . Disarmed 10 | . 10 . . . . . Reprogrammed 17 | . 7 . 10 . . . Reused 7 | . . . . . 7 . Traps Extracted 9 | . . . 9 . . . Installed 8 | . . . . . 8 . Triggered . | . . . . . . . Exploded 3 | . . . . . 3 . Machines | -11 -10 -10 -9 -9 -9 -8 ---------- Run | Scr Mat Min Mat Min Exi Min Machines Disabled 20 | . 4 . 3 4 9 . Max in Single Turn 2 | . 1 . 1 2 2 . Machines Sabotaged . | . . . . . . . Garrisons Compromised . | . . . . . . . Overloaded Fab Kills . | . . . . . . . Fab Network Shutdowns . | . . . . . . . Hacking | -11 -10 -10 -9 -9 -9 -8 --------- Run | Scr Mat Min Mat Min Exi Min Machines Accessed 24 | . 7 . 14 1 2 . Terminals 14 | . 5 . 9 . . . Fabricators . | . . . . . . . Repair Stations 1 | . . . 1 . . . Recycling Units 4 | . 2 . 2 . . . Scanalyzers 2 | . . . 2 . . . Garrison Access . | . . . . . . . Total Hacks 80 | . 19 . 58 1 2 . Successful 54 | . 12 . 39 1 2 . Failed 25 | . 6 . 19 . . . Catastrophic 4 | . 2 . 2 . . . Database Lockouts 1 | . 1 . . . . . Manual 45 | . 13 . 31 . 1 . Terminals 43 | . 14 . 29 . . . Fabricators . | . . . . . . . Repair Stations 13 | . . . 13 . . . Recycling Units 13 | . 5 . 8 . . . Scanalyzers 8 | . . . 8 . . . Garrison Access . | . . . . . . . Terminal Hacks 16 | . 5 . 8 1 2 . Record 1 | . . . . . 1 . Part Schematic 1 | . . . 1 . . . Robot Analysis 5 | . 1 . 4 . . . Prototype ID Bank 2 | . 1 . 1 . . . Open Door 1 | . . . . 1 . . Terminal Index 2 | . 1 . 1 . . . Recycling Unit Index 1 | . 1 . . . . . Locate Traps 1 | . 1 . . . . . Zone Layout 1 | . . . 1 . . . EX-Prototype ID Bank 1 | . . . . . 1 . Fabricator Hacks . | . . . . . . . Repair Station Hacks 10 | . . . 10 . . . Scan Component 5 | . . . 5 . . . Repair 5 | . . . 5 . . . Recycling Unit Hacks 4 | . 2 . 2 . . . Retrieve Components 4 | . 2 . 2 . . . Scanalyzer 8 | . . . 8 . . . Insert Component 4 | . . . 4 . . . Analyze 4 | . . . 4 . . . Garrison Access Hacks . | . . . . . . . Unauthorized Hacks 16 | . 5 . 11 . . . Terminals 11 | . 3 . 8 . . . Track 1 | . . . 1 . . . Assimilate 1 | . 1 . . . . . Botnet 7 | . 1 . 6 . . . Operators 2 | . 1 . 1 . . . Fabricators . | . . . . . . . Repair Stations . | . . . . . . . Recycling Units 5 | . 2 . 3 . . . Reject 2 | . 1 . 1 . . . Mask 3 | . 1 . 2 . . . Scanalyzers . | . . . . . . . Garrison Access . | . . . . . . . Data Cores Recovered . | . . . . . . . Used . | . . . . . . . Hacking Detections 16 | . 5 . 11 . . . Full Trace Events 5 | . 2 . 3 . . . Feedback Events 1 | . . . 1 . . . Corruption 1 | . . . 1 . . . Feedback Blocked . | . . . . . . . Robot Schematics Acquired . | . . . . . . . Robots Built . | . . . . . . . Matter . | . . . . . . . Time . | . . . . . . . Total Robot Build Rating . | . . . . . . . Part Schematics Acquired 4 | . . . 4 . . . Parts Built . | . . . . . . . Matter . | . . . . . . . Time . | . . . . . . . Total Part Build Rating . | . . . . . . . Parts Repaired 5 | . . . 5 . . . Time 180 | . . . 180 . . . Parts Recycled . | . . . . . . . Recycled Matter . | . . . . . . . Retrieved Matter . | . . . . . . . Retrieved Components 34 | . 19 . 15 . . . Parts Scanalyzed 3 | . . . 3 . . . Part Schematics Acquired 3 | . . . 3 . . . Parts Damaged . | . . . . . . . Bothacking | -11 -10 -10 -9 -9 -9 -8 ------------ Run | Scr Mat Min Mat Min Exi Min Used RIF Installer . | . . . . . . . Robots Hacked 8 | . 2 . 2 . 4 . Non-combat 7 | . 2 . 2 . 3 . Combat 1 | . . . . . 1 . Robot Hacks Applied 9 | . 3 . 2 . 4 . parse_system 4 | . . . . . 4 . no_distress 3 | . 2 . 1 . . . find_recycling 1 | . . . 1 . . . check_alert 1 | . 1 . . . . . Relay Couplers Released . | . . . . . . . Robots Rewired . | . . . . . . . Allies Hacked . | . . . . . . . Hacks Repelled . | . . . . . . . Allies | -11 -10 -10 -9 -9 -9 -8 -------- Run | Scr Mat Min Mat Min Exi Min Total Allies 1 | . 1 . . . . . Largest Group 1 | . 1 . . . . . Highest-Rated Group 10 | . 10 . . . . . Highest-Rated Ally 10 | . 10 . . . . . Total Orders 6 | . 6 . . . . . STAY 3 | . 3 . . . . . FOLLOW 3 | . 3 . . . . . Ally Attacks . | . . . . . . . Total Damage . | . . . . . . . Kills . | . . . . . . . Allies Corrupted . | . . . . . . . Allies Melted . | . . . . . . . Intel | -11 -10 -10 -9 -9 -9 -8 ------- Run | Scr Mat Min Mat Min Exi Min Robot Analysis Total 5 | . 1 . 4 . . . Derelict Logs Recovered 3 | . . 1 . 2 . . Drone Launches . | . . . . . . . Drone Recoveries . | . . . . . . . Exploration | -11 -10 -10 -9 -9 -9 -8 ------------- Run | Scr Mat Min Mat Min Exi Min Turns Passed 14677 | 115 3042 1218 4905 1589 3633 175 Spaces Moved 6455 | 50 1687 607 1948 655 1472 36 Core 1038 | 5 1032 . . . 1 . Treads 4887 | 45 655 607 1948 655 977 . Legs 530 | . . . . . 494 36 Wheels . | . . . . . . . Hover . | . . . . . . . Flight . | . . . . . . . Fastest Speed 50 | 50 50 180 180 200 150 210 Average Speed 179 | 149 120 180 196 221 203 210 Slowest Speed 1600 | 160 200 180 200 260 1600 210 Overloaded Moves . | . . . . . . . Propulsion Burnouts . | . . . . . . . Robots Hopped . | . . . . . . . Cave-ins Triggered . | . . . . . . . Exploration Rate (%) 72 | 4 99 96 99 98 90 20 Regions Visited 6 Branch Regions 4 Pre-discovered Areas 5 | . . 1 . 3 1 . Known Exits Taken 3 | . 1 1 1 . . . Unknown Exits Taken 3 | 1 . . . 1 1 . Scrap Searched 2 | . . 1 . 1 . . Spaces Dug 14 | . 9 . . . 5 . Terrain Destroyed 312 | . 64 . 16 215 17 . Melee . | . . . . . . . Projectile 14 | . 14 . . . . . AOE 298 | . 50 . 16 215 17 . Terrain Rammed . | . . . . . . . Walls Destroyed . | . . . . . . . Machines Disabled . | . . . . . . . Actions | -11 -10 -10 -9 -9 -9 -8 --------- Run | Scr Mat Min Mat Min Exi Min Total 8649 | 70 2443 656 2757 740 1911 72 Wait 940 | . 409 3 443 39 44 2 Move 6449 | 49 1686 606 1947 654 1471 36 Hop . | . . . . . . . Pick Up 146 | 5 20 2 41 1 77 . Fast Attach 32 | 3 12 . 11 1 5 . Attach 20 | 1 5 . 7 . 6 1 Detach 19 | . 7 . 1 . 11 . Swap 64 | . 8 . 36 7 13 . Drop 133 | 1 14 2 47 1 68 . Fire 592 | 11 127 43 137 37 204 33 Melee 10 | . 4 . 2 . 4 . Ram . | . . . . . . . Kick . | . . . . . . . Crush 3 | . 1 . 2 . . . Escape Stasis . | . . . . . . . Rewire . | . . . . . . . Trap 241 | . 150 . 83 . 8 . Miscellaneous . | . . . . . . . Route ------- -11/Scrapyard -10/Materials (discovered 5 exits: *Mat x3 / *Min x2) -10/Mines (discovered 2 exits: *Mat x2) -9/Materials (discovered 5 exits: *Mat x3 / *Min x2) -9/Mines (discovered 3 exits: *Mat x2 / *Exi) -9/Exiles (discovered 2 exits: [*Min x2]) -8/Mines History --------- Turn | Location | Event 12 | -11/Scrapyard | Discovered new exit (range 13) 116 | -11/Scrapyard | Entered Materials 306 | -10/Materials | Build established: Mutant 629 | -10/Materials | Discovered new exit (range 3) 638 | -10/Materials | Discovered new exit (range 16) 891 | -10/Materials | Discovered new exit (range 14) 949 | -10/Materials | Core integrity fell below 50% 1229 | -10/Materials | Discovered new exit (range 4) 1968 | -10/Materials | Discovered new exit (range 15) 1995 | -10/Materials | Central database locked down 2014 | -10/Materials | Core integrity fell below 20% 2063 | -10/Materials | Lost 3 parts (1n1u1w) 2383 | -10/Materials | Identified exit to Mines 2518 | -10/Materials | Identified exit to Materials 3158 | -10/Materials | Entered Mines 3217 | -10/Mines | Discovered exit to Materials (range 8) 3258 | -10/Mines | Learned location of Zion (-6) 3283 | -10/Mines | YI-UF0 nonchalantly dropped a Grenade Launcher on the ground 3347 | -10/Mines | Destroyed YI-UF0 3635 | -10/Mines | A weapon hastily lodged in a ceiling crevice suddenly fell to the ground 3813 | -10/Mines | Discovered exit to Materials (range 9) 4376 | -10/Mines | Entered Materials 4376 | -9/Materials | Evolved 2 slots: Utility x2 4731 | -9/Materials | Discovered new exit (range 6) 4738 | -9/Materials | Identified exit to Mines 4768 | -9/Materials | Build established: Scavenger-Mutant 4944 | -9/Materials | Destroyed 7 combat bots 5045 | -9/Materials | Discovered new exit (range 16) 5118 | -9/Materials | Identified exit to Materials 5416 | -9/Materials | Discovered exit to Mines (range 15) 5456 | -9/Materials | Build established: Hauler-Mutant 6736 | -9/Materials | Discovered exit to Materials (range 8) 7532 | -9/Materials | Discovered exit to Materials (range 8) 7605 | -9/Materials | Repaired Imp. Assault Rifle 7658 | -9/Materials | Repaired Imp. Assault Rifle 7685 | -9/Materials | Repaired Lgt. Treads 7712 | -9/Materials | Repaired Lgt. Treads 7740 | -9/Materials | Repaired Lgt. Treads 8376 | -9/Materials | First assault squad dispatched 8457 | -9/Materials | Core integrity fell below 50% 9005 | -9/Materials | Build established: Trapper-Mutant 9281 | -9/Materials | Entered Mines 9484 | -9/Mines | Met a Derelict who couldn't figure out how to use a Trap Extractor 9553 | -9/Mines | Received a Rocket Launcher from a helpful Derelict 9616 | -9/Mines | Deemed a non-threat by the Exiles lab entrance 9616 | -9/Mines | Discovered new exit (range 5) 9676 | -9/Mines | Learned location of Storage (-8) 9913 | -9/Mines | Assembled infested the area 9918 | -9/Mines | Assisted by a Guerilla fighting off Assembled 10005 | -9/Mines | Destroyed 9 combat bots 10114 | -9/Mines | Discovered exit to Materials (range 10) 10340 | -9/Mines | Discovered exit to Materials (range 5) 10870 | -9/Mines | Entered Exiles 10924 | -9/Exiles | Met 8R-AWN 11079 | -9/Exiles | Met EX-HEX 11224 | -9/Exiles | Build established: Hauler-Mutant 11280 | -9/Exiles | Met EX-DEC 11381 | -9/Exiles | Met EX-BIN 11414 | -9/Exiles | Aligned with FarCom system 11416 | -9/Exiles | Given EX-Vault access code 11467 | -9/Exiles | Opened EX-Vault 11482 | -9/Exiles | Found Lightpack 2.0 11529 | -9/Exiles | Warned to stay clear of 0b10 Research branches 11728 | -9/Exiles | Discovered new exit (range 10) 11880 | -9/Exiles | Attacked by the Exiles 12194 | -9/Exiles | Found 8R-AWN's Boregun 12207 | -9/Exiles | Found AS-neutralizer No. 17b 12210 | -9/Exiles | Found 8R-AWN's Boregun 12609 | -9/Exiles | Destroyed EX-BIN 12609 | -9/Exiles | Destroyed EX-HEX 12793 | -9/Exiles | Destroyed EX-DEC 13429 | -9/Exiles | Destroyed 8R-AWN 13465 | -9/Exiles | Found Exp. Targeting Computer 13469 | -9/Exiles | Found 8R-AWN's Armor/EX 13611 | -9/Exiles | Found Deploy-a-Sentry 14477 | -9/Exiles | Discovered new exit (range 14) 14503 | -9/Exiles | Stole two prototypes: Lightpack 2.0, Deploy-a-Sentry 14503 | -9/Exiles | Entered Mines 14566 | -8/Mines | Core integrity fell below 20% 14678 | -8/Mines | Destroyed by G-47 Trooper with Particle Gun Last Messages --------------- 14536_ G-47 Trooper unfolds itself. 14541_ Knocked back. 14542_ G-47 Trooper suffers critical hit. 14542_ Destroyed Aluminum Leg. 14548_ G-47 Trooper destroyed. 14569_ B-36 Bruiser destroyed. 14570_ Acquired 54 matter. 14587_ G-47 Trooper destroyed. 14590_ Acquired 42 matter. 14594_ Acquired 14 matter. 14641_ K-01 Serf collects debris. 14648_ K-01 Serf cleans the Pressure Siphon. 14653_ K-01 Serf collects debris. 14659_ G-50 Soldier destroyed. 14660_ System corrupted: Energy discharge (-89). 14663_ R-06 Scavenger collects Carbon-fiber Leg. 14665_ Imp. Assault Rifle destroyed. 14672_ System corrupted: Imp. Assault Rifle targeting data glitched. 14672_ Destroyed Particle Gun. 14674_ K-01 Serf collects debris. Map ----- +----------------------------------------------------+ | ?????????????????????????????????????????????????? | | ?????????????????????????????????????????????????? | | ?????????????????????????????????????????????????? | | ?????????????????????????????????????????????????? | | ?????????????????????????????????????????????????? | | ?????????????????????????????????????????????????? | | ?????????????????????????????????????????????????? | | ?????????????????????????????????????????????????? | | ??????????????????????? ?????????????????????????? | | ??????????????????????# ?????????????????????????? | | ??????????????????????# ?????????????????????????? | | ??????????????????????# ?????????????????????????? | | ??????????????????????#r##???????????????????????? | | ?????????????????????? #??????????????########## | | ?????????????????????? #??????????????# | | ??????????????????????# #????########### | | ??????????????????????# #????#"%" !* * """ " | | ??????????????????????# #????# ###%##### """ " | | ??????????????????????# ??????### #???# """ " | | ??????????????????????# #?????## ##??# | | ???????????????????#### ##??### ##?# """ | | ??????????????????## r #### ### """ | | ??????????????????# g ##g u ## """ | | ??????????????????# % ## | | ??????????????????# """" ### """ " | | ??????????????????## ##@ """" ##?# """ " | | ???????????????????# #?## """" #??# """ " | | ???????????????????# ???### k #??# | | ???????????????????# ??????### #??########## | | ??????????????????? ????????## ##???????????? | | ?????????????????? ???????????######????????????? | | ????????????????? "?????????????????????????????? | | ???????????????? ??????????????????????????????? | | ???????????????# ??????????????????????????????? | | ???????????????# ???????????????????????????????? | | ???????????????##????????????????????????????????? | | ?????????????????????????????????????????????????? | | ?????????????????????????????????????????????????? | | | | | | | | | | | | | | | | | | | | | | | | | +----------------------------------------------------+ Best States ------------- Heat Dissipation 28 Energy Generation 19 Energy Capacity 310 Matter Stores 300 Matter Capacity 300 Sight Range 16 Robot Scan Range 10 Terrain Scan Density 10 Additional Mass Support 6 Armor Coverage 300 Evasion (%) 50 Targeting Accuracy 6 Recoil Reduction 2 Salvage Targeting 1 Item Schematics ----------------- Hacking Suite | -9/Materials | Scanalyzed Hcp. Storage Unit | -9/Materials | Hacked Imp. Flight Unit | -9/Materials | Scanalyzed Structural Scanner | -9/Materials | Scanalyzed Robot Schematics ------------------ None Fabricated ------------ Nothing Alien Tech Used ----------------- None Achievements -------------- None Challenges ------------ None Game ------ Seed SegregatorPhasingCapacitor Manual? 0 Play Time 01:22:21 Cumulative 241.6 hours Start 2021.01.26 @ 09:41:36 End 2021.01.26 @ 11:13:07 Sessions 1 Manual Loads 0 Difficulty Rogue Special Mode None Game No. 215 Rogue 215 Adventurer 0 Explorer 0 Win Type - Total 1 Types 0/0/0/1/0/0/0/0/0 Lore% 61 Gallery% 72 Achievement% 57 Wizard Run 0 Options --------- ASCII 0 Keyboard 1 Movement Numpad Keybinds 0 Fullscreen 1 Font 12/Terminus Map View 83x54 Tactical HUD 1 Map Filters NONE Filters NONE Steam 1 RUN: 33f97403-e906-44c6-89ff-a64d866b441f